bitfinex-derivatives/quotes_BTCF0:USTF0_20251028
["timestamp","ask_amount","ask_price","bid_price","bid_amount"]
[1761623712419,0.002,113850.0,113840.0,0.30581881]
[1761623712825,0.0898383,113850.0,113840.0,0.30581881]
[1761623713326,0.1115483,113850.0,113840.0,0.30581881]
[1761623713823,0.1340083,113850.0,113840.0,0.30581881]
[1761623715125,0.1340083,113850.0,113840.0,0.15319798]
[1761623717025,0.1340083,113850.0,113840.0,0.30581881]
[1761623717830,0.1340083,113850.0,113840.0,0.45880888]
[1761623722937,0.04617,113850.0,113840.0,0.45880888]
[1761623723145,0.002,113850.0,113840.0,0.45880888]
[1761623723835,0.002,113850.0,113840.0,0.61161433]
[1761623724036,0.002,113850.0,113840.0,0.74286508]
[1761623724245,0.00010457,113870.0,113860.0,0.1469606]
[1761623724444,0.00010457,113870.0,113860.0,0.4525715]
[1761623725545,0.00010457,113870.0,113860.0,0.73686802]
[1761623727236,0.1319764,113900.0,113890.0,0.1469375]
[1761623727437,0.1319764,113900.0,113890.0,0.29974295]
[1761623728240,0.28478185,113900.0,113890.0,0.21193545]
[1761623728547,0.28478185,113900.0,113890.0,0.29974295]
[1761623728745,0.28478185,113900.0,113890.0,0.1469375]
[1761623729645,0.28878185,113900.0,113890.0,0.1489375]
[1761623730540,0.28878185,113900.0,113890.0,0.30174295]
[1761623730846,0.28878185,113900.0,113890.0,0.1489375]
[1761623735050,0.28878185,113900.0,113890.0,0.30174295]
[1761623735961,0.4415873,113900.0,113890.0,0.30174295]
[1761623736251,0.4415873,113900.0,113890.0,0.1489375]
[1761623737750,0.4525873,113900.0,113890.0,0.002]
[1761623738149,0.4525873,113900.0,113890.0,0.04736]
[1761623738455,0.4525873,113900.0,113890.0,0.1351677]
[1761623738654,0.4525873,113900.0,113890.0,0.1487377]
[1761623738853,0.4415873,113900.0,113890.0,0.1487377]
[1761623740564,0.4415873,113900.0,113890.0,0.06093]
[1761623743258,0.4415873,113900.0,113890.0,0.1487376]
[1761623744254,0.4415873,113900.0,113890.0,0.06093]
[1761623744752,0.4525873,113900.0,113890.0,0.06093]
[1761623744952,0.4525873,113900.0,113890.0,0.04736]
[1761623745355,0.4525873,113900.0,113890.0,0.1351676]
[1761623746659,0.4525873,113900.0,113890.0,0.04736]
[1761623747054,0.4415873,113900.0,113890.0,0.04736]
[1761623747261,0.4415873,113900.0,113890.0,0.06093]
[1761623749861,0.4525873,113900.0,113890.0,0.06093]
[1761623754858,0.47563845,113900.0,113890.0,0.06093]
[1761623755162,0.4525873,113900.0,113890.0,0.06093]
[1761623755356,0.47564786,113900.0,113890.0,0.06093]
[1761623758966,0.46464786,113900.0,113890.0,0.06093]
[1761623761167,0.15903696,113900.0,113890.0,0.06093]
[1761623761367,0.46464786,113900.0,113890.0,0.06093]
[1761623761554,0.15903696,113900.0,113890.0,0.21373545]
[1761623761759,0.0918064,113900.0,113890.0,0.3665409]
[1761623762160,0.0918064,113900.0,113890.0,0.34631091]
[1761623762555,0.004,113900.0,113890.0,0.34631091]
[1761623762970,0.0917999,113900.0,113890.0,0.34631091]
[1761623763165,0.1133699,113900.0,113890.0,0.34631091]
[1761623763365,0.1362799,113900.0,113890.0,0.34631091]
[1761623764871,0.0917999,113900.0,113890.0,0.34631091]
[1761623765174,0.004,113900.0,113890.0,0.34631091]
[1761623765361,0.02557,113900.0,113890.0,0.34631091]
[1761623766972,0.02557,113900.0,113890.0,0.40944261]
[1761623767173,0.004,113900.0,113890.0,0.40944261]
[1761623767364,0.004,113900.0,113890.0,0.65005566]
[1761623767867,0.004,113900.0,113890.0,0.79715566]
[1761623771370,0.1336622,113930.0,113920.0,0.05675]
[1761623771558,0.1336622,113930.0,113920.0,0.20955545]
[1761623771765,0.28646765,113930.0,113920.0,0.20955545]
[1761623772270,0.28646765,113930.0,113920.0,0.05675]
[1761623772466,0.29729765,113930.0,113920.0,0.04383]
[1761623772667,0.29829765,113930.0,113920.0,0.04383]
[1761623774178,0.30729765,113930.0,113920.0,0.04583]
[1761623774377,0.30729765,113930.0,113920.0,0.002]
[1761623774578,0.4601031,113930.0,113920.0,0.002]
[1761623774773,0.4830944,113930.0,113920.0,0.002]
[1761623774972,0.48309128,113930.0,113920.0,0.002]
[1761623775170,0.1336723,113910.0,113900.0,0.20955545]
[1761623775365,0.29257775,113910.0,113900.0,0.04383]
[1761623776186,0.29257775,113910.0,113900.0,0.02106]
[1761623776688,0.1397723,113910.0,113900.0,0.04383]
[1761623776889,0.29257775,113910.0,113900.0,0.04383]
[1761623777389,0.29357775,113910.0,113900.0,0.04683]
[1761623779693,0.2934668,113910.0,113900.0,0.04683]
[1761623780090,0.1407723,113910.0,113900.0,0.04683]
[1761623780290,0.1407723,113910.0,113900.0,0.05975]
[1761623780587,0.1346723,113910.0,113900.0,0.05975]
[1761623781099,0.1346723,113910.0,113900.0,0.2124445]
[1761623782388,0.1346723,113910.0,113900.0,0.27552471]
[1761623784096,0.1346723,113910.0,113900.0,0.12283021]
[1761623792306,0.1346723,113910.0,113900.0,0.05975]
[1761623798810,0.1346723,113910.0,113900.0,0.2124445]
[1761623799116,0.1346723,113910.0,113900.0,0.05975]
[1761623800707,0.001,113910.0,113900.0,0.3002441]
[1761623801102,0.001,113910.0,113900.0,0.36332431]
[1761623801608,0.02268,113910.0,113900.0,0.36332431]
[1761623803112,0.02268,113910.0,113900.0,0.3002441]
[1761623803303,0.001,113910.0,113900.0,0.37922231]
[1761623803504,0.02268,113910.0,113900.0,0.37922231]
[1761623804311,0.04401,113910.0,113900.0,0.37922231]
[1761623806011,0.04401,113910.0,113900.0,0.52632231]
[1761623806213,0.1318026,113910.0,113900.0,0.52632231]
[1761623806410,0.1318026,113910.0,113900.0,0.43852271]
[1761623806614,0.1318026,113910.0,113900.0,0.42267487]
[1761623808211,0.1318026,113910.0,113900.0,0.3595445]
[1761623808410,0.04401,113910.0,113900.0,0.4473448]
[1761623808618,0.001,113910.0,113900.0,0.52632301]
[1761623809413,0.02268,113910.0,113900.0,0.52632301]
[1761623809815,0.001,113910.0,113900.0,0.5105014]
[1761623810916,0.001,113910.0,113900.0,0.6415849]
[1761623811111,0.1094667,113920.0,113910.0,0.01355]
[1761623811314,0.1307967,113920.0,113910.0,0.2108545]
[1761623812618,0.1307967,113920.0,113910.0,0.2740111]
[1761623813019,0.1317967,113920.0,113910.0,0.2760111]
[1761623813620,0.001,113920.0,113910.0,0.5164982]
[1761623813810,0.001,113920.0,113910.0,0.3006471]
[1761623814006,0.1307922,113930.0,113910.0,0.2986471]
[1761623814315,0.1307922,113930.0,113920.0,0.2108545]
[1761623814719,0.1307922,113930.0,113920.0,0.27401667]
[1761623814918,0.0877822,113930.0,113920.0,0.27401667]
[1761623815221,0.1307922,113930.0,113920.0,0.27401667]
[1761623816007,0.1307852,113940.0,113930.0,0.05816]
[1761623816208,0.1307852,113940.0,113930.0,0.21978059]
[1761623816421,0.1307852,113940.0,113930.0,0.28294276]
[1761623817523,0.1327852,113940.0,113930.0,0.28394276]
[1761623817724,0.1327852,113940.0,113930.0,0.13124826]
[1761623817920,0.1337852,113940.0,113930.0,0.13124826]
[1761623818810,0.1337852,113940.0,113930.0,0.28394276]
[1761623820024,0.1337852,113940.0,113930.0,0.13124826]
[1761623821325,0.1337852,113940.0,113930.0,0.06808609]
[1761623822022,0.04601,113940.0,113930.0,0.22078059]
[1761623822219,0.0907694,113940.0,113930.0,0.28394276]
[1761623822923,0.003,113940.0,113930.0,0.50364744]
[1761623823318,0.1308097,113960.0,113950.0,0.05898]
[1761623823816,0.1308097,113960.0,113950.0,0.2116745]
[1761623824539,0.1318097,113960.0,113950.0,0.2116745]
[1761623826120,0.1378097,113960.0,113950.0,0.2126745]
[1761623826728,0.0947597,113960.0,113950.0,0.2126745]
[1761623827521,0.007,113960.0,113950.0,0.3004363]
[1761623827824,0.007,113960.0,113950.0,0.36345062]
[1761623828529,0.007,113960.0,113950.0,0.49435632]
[1761623828727,0.0877464,113970.0,113960.0,0.01373]
[1761623828933,0.1099564,113970.0,113960.0,0.2112745]
[1761623829234,0.02221,113970.0,113960.0,0.2112745]
[1761623829530,0.1323434,113980.0,113970.0,0.05858]
[1761623829732,0.1323434,113980.0,113970.0,0.2112745]
[1761623830923,0.1343434,113980.0,113970.0,0.05858]
[1761623831827,0.1343434,113980.0,113970.0,0.2112745]
[1761623832039,0.1413434,113980.0,113970.0,0.2122745]
[1761623832331,0.009,113980.0,113970.0,0.2122745]
[1761623832830,0.009,113980.0,113970.0,0.05958]
[1761623833032,0.009,113980.0,113970.0,0.2122745]
[1761623835331,0.009,113980.0,113970.0,0.3000208]
[1761623835628,0.1323283,114000.0,113990.0,0.05858]
[1761623836933,0.1333283,114000.0,113990.0,0.05858]
[1761623837132,0.1333283,114000.0,113990.0,0.06728601]
[1761623837327,0.1333283,114000.0,113990.0,0.21998051]
[1761623837526,0.1333283,114000.0,113990.0,0.06728601]
[1761623838138,0.1333283,114000.0,113990.0,0.07128601]
[1761623839737,0.1333283,114000.0,113990.0,0.22370713]
[1761623841324,0.28574942,114000.0,113990.0,0.22370713]
[1761623844743,0.44917054,114000.0,113990.0,0.004]
[1761623845042,0.44917054,114000.0,113990.0,0.04885]
[1761623846143,0.1443283,114000.0,113990.0,0.04885]
[1761623846442,0.44917054,114000.0,113990.0,0.04885]
[1761623847038,0.44917054,114000.0,113990.0,0.004]
[1761623847334,0.1443283,114000.0,113990.0,0.004]
[1761623847542,0.44917054,114000.0,113990.0,0.02676]
[1761623847739,0.44917054,114000.0,113990.0,0.004]
[1761623848334,0.47209525,114000.0,113990.0,0.02676]
[1761623849042,0.47209525,114000.0,113990.0,0.04928]
[1761623849539,0.47209525,114000.0,113990.0,0.004]
[1761623850428,0.31967413,114000.0,113990.0,0.21349112]
[1761623850633,0.29674942,114000.0,113990.0,0.21349112]
[1761623850939,0.28574942,114000.0,113990.0,0.21349112]
[1761623851444,0.30869315,114000.0,113990.0,0.21349112]
[1761623852445,0.15627203,114000.0,113990.0,0.21349112]
[1761623852744,0.30869315,114000.0,113990.0,0.21349112]
[1761623853248,0.1333283,114000.0,113990.0,0.21349112]
[1761623853450,0.15628871,114000.0,113990.0,0.21349112]
[1761623853654,0.28574942,114000.0,113990.0,0.06107]
[1761623853853,0.28574942,114000.0,113990.0,0.21349112]
[1761623854354,0.30871613,114000.0,113990.0,0.21349112]
[1761623854952,0.15629501,114000.0,113990.0,0.21349112]
[1761623855462,0.11169001,114000.0,113990.0,0.36591224]
[1761623855749,0.1309533,114000.0,113990.0,0.21349112]
[1761623858157,0.28337442,114000.0,113990.0,0.21349112]
[1761623858359,0.1309533,114000.0,113990.0,0.21349112]
[1761623859450,0.15397868,114000.0,113990.0,0.21349112]
[1761623860057,0.0887233,114000.0,113990.0,0.36591224]
[1761623860554,0.1309533,114000.0,113990.0,0.21349112]
[1761623864662,0.1309533,114000.0,113990.0,0.36059112]
[1761623864859,0.44679554,114000.0,113990.0,0.20817]
[1761623865052,0.31740324,114000.0,113990.0,0.19529]
[1761623865461,0.31740324,114000.0,113990.0,0.34771112]
[1761623865663,0.31740324,114000.0,113990.0,0.36059112]
[1761623866161,0.31740324,114000.0,113990.0,0.20817]
[1761623866867,0.31740324,114000.0,113990.0,0.19529]
[1761623868455,0.16498212,114000.0,113990.0,0.19529]
[1761623868662,0.31740324,114000.0,113990.0,0.19529]
[1761623868864,0.44679554,114000.0,113990.0,0.19529]
[1761623869054,0.31740403,114000.0,113990.0,0.19529]
[1761623869254,0.46982515,114000.0,113990.0,0.19529]
[1761623870561,0.30640403,114000.0,113990.0,0.21349112]
[1761623871668,0.30640403,114000.0,113990.0,0.06107]
[1761623872368,0.30640403,114000.0,113990.0,0.21349112]
[1761623874854,0.15398291,114000.0,113990.0,0.21349112]
[1761623876164,0.1309533,114000.0,113990.0,0.21349112]
[1761623877659,0.1309533,114000.0,113990.0,0.36591224]
[1761623877859,0.0887233,114000.0,113990.0,0.42892656]
[1761623878060,0.0887233,114000.0,113990.0,0.27650544]
[1761623878464,0.0887233,114000.0,113990.0,0.42892656]
[1761623879466,0.0887233,114000.0,113990.0,0.27650544]
[1761623879764,0.1099533,114000.0,113990.0,0.27650544]
[1761623879967,0.1329733,114000.0,113990.0,0.27650544]
[1761623881259,0.1329733,114000.0,113990.0,0.12408432]
[1761623881459,0.1329733,114000.0,113990.0,0.27650544]
[1761623882274,0.1329733,114000.0,113990.0,0.42360544]
[1761623883159,0.0887233,114000.0,113990.0,0.42360544]
[1761623883871,0.1099533,114000.0,113990.0,0.42360544]
[1761623884068,0.1329733,114000.0,113990.0,0.42360544]
[1761623894075,0.1329733,114000.0,113990.0,0.27650544]
[1761623899076,0.28539442,114000.0,113990.0,0.12408432]
[1761623899270,0.28539442,114000.0,113990.0,0.27650544]
[1761623899674,0.1329733,114000.0,113990.0,0.12408432]
[1761623903779,0.1329733,114000.0,113990.0,0.27651813]
[1761623904280,0.1329733,114000.0,113990.0,0.12408432]
[1761623914186,0.1329733,114000.0,113990.0,0.11120432]
[1761623914187,0.1439733,114000.0,113990.0,0.11120432]
[1761623914591,0.47185176,114000.0,113990.0,0.004]
[1761623914785,0.31941795,114000.0,113990.0,0.004]
[1761623914987,0.31941795,114000.0,113990.0,0.02572]
[1761623916377,0.31941795,114000.0,113990.0,0.0479]
[1761623917586,0.31941795,114000.0,113990.0,0.02572]
[1761623917780,0.31941795,114000.0,113990.0,0.0479]
[1761623918693,0.16698414,114000.0,113990.0,0.0479]
[1761623918890,0.31941795,114000.0,113990.0,0.0479]
[1761623919289,0.31941795,114000.0,113990.0,0.02572]
[1761623920894,0.31941795,114000.0,113990.0,0.0479]
[1761623924397,0.31941795,114000.0,113990.0,0.02572]
[1761623924696,0.31941795,114000.0,113990.0,0.004]
[1761623925594,0.31941795,114000.0,113990.0,0.02572]
[1761623925791,0.31941795,114000.0,113990.0,0.004]
[1761623926295,0.47185176,114000.0,113990.0,0.004]
[1761623927198,0.49185176,114000.0,113990.0,0.004]
[1761623927997,0.18698414,114000.0,113990.0,0.004]
[1761623928194,0.49185176,114000.0,113990.0,0.004]
[1761623928900,1.09185176,114000.0,113990.0,0.004]
[1761623929099,0.1313887,113980.0,113970.0,0.05763]
[1761623930306,0.1323887,113980.0,113970.0,0.06663]
[1761623930606,0.1323887,113980.0,113970.0,0.07555377]
[1761623931008,0.1323887,113980.0,113970.0,0.06663]
[1761623937097,0.1323887,113980.0,113970.0,0.21906381]
[1761623953019,0.1323887,113980.0,113970.0,0.06663]
[1761623953221,0.1323887,113980.0,113970.0,0.21906381]
[1761623955520,0.0887387,113980.0,113970.0,0.21906381]
[1761623955916,0.1111787,113980.0,113970.0,0.21906381]
[1761623956113,0.0887387,113980.0,113970.0,0.21906381]
[1761623957619,0.1111787,113980.0,113970.0,0.21906381]
[1761623960821,0.1330187,113980.0,113970.0,0.21906381]
[1761623961723,0.1330187,113980.0,113970.0,0.21908915]
[1761623967219,0.04528,113980.0,113970.0,0.3715483]
[1761623967426,0.0887386,113980.0,113970.0,0.21908915]
[1761623969022,0.1328786,113980.0,113970.0,0.21908915]
[1761623969323,0.28533775,113980.0,113970.0,0.21908915]
[1761623969525,0.29143775,113980.0,113970.0,0.0529]
[1761623970116,0.4438969,113980.0,113970.0,0.0529]
[1761623970828,0.29143775,113980.0,113970.0,0.0529]
[1761623971430,0.4438969,113980.0,113970.0,0.0529]
[1761623971729,0.4438969,113980.0,113950.0,0.01307]
[1761623971730,0.132484,113960.0,113950.0,0.13663821]
[1761623971935,0.28494315,113960.0,113950.0,0.05766]
[1761623972935,0.28494315,113960.0,113950.0,0.06655611]
[1761623973228,0.28494315,113960.0,113950.0,0.07855611]
[1761623973229,0.28594315,113960.0,113950.0,0.07855611]
[1761623974023,0.29694315,113960.0,113950.0,0.03395]
[1761623974220,0.4494023,113960.0,113950.0,0.05659]
[1761623974527,0.4494023,113960.0,113950.0,0.012]
[1761623974731,0.4494023,113960.0,113950.0,0.05659]
[1761623976833,0.144484,113960.0,113950.0,0.05659]
[1761623977027,0.4494023,113960.0,113950.0,0.05659]
[1761623980727,0.29694315,113960.0,113950.0,0.07054]
[1761623983141,0.28594315,113960.0,113950.0,0.07054]
[1761623984339,0.28594315,113960.0,113950.0,0.06254]
[1761623986045,0.28594315,113960.0,113950.0,0.21499915]
[1761623990345,0.133484,113960.0,113950.0,0.21499915]
[1761623990644,0.28594315,113960.0,113950.0,0.06254]
[1761623995850,0.133484,113960.0,113950.0,0.21499915]
[1761623997642,0.28594315,113960.0,113950.0,0.21499915]
[1761624001547,0.4384023,113960.0,113950.0,0.06254]
[1761624001747,0.6251178,113960.0,113950.0,0.004]
[1761624001938,0.1367589,113940.0,113930.0,0.02317]
[1761624002138,0.1367589,113940.0,113930.0,0.0449]
[1761624002337,0.4416772,113940.0,113930.0,0.0449]
[1761624003450,0.4416772,113940.0,113930.0,0.05487396]
[1761624003745,0.4416772,113940.0,113930.0,0.0459]
[1761624003947,0.4416772,113940.0,113930.0,0.02417]
[1761624004144,0.4436772,113940.0,113930.0,0.008]
[1761624004853,0.4436772,113940.0,113930.0,0.007]
[1761624005043,0.47585829,113940.0,113930.0,0.007]
[1761624005249,0.1433065,113930.0,113920.0,0.04500625]
[1761624005440,0.29576565,113930.0,113920.0,0.04500625]
[1761624006540,0.29576565,113930.0,113920.0,0.05381808]
[1761624007051,0.29676565,113930.0,113920.0,0.04600625]
[1761624008241,0.29676565,113930.0,113920.0,0.00110625]
[1761624008442,0.29676565,113930.0,113920.0,0.02229625]
[1761624008647,0.29676565,113930.0,113920.0,0.00110625]
[1761624008848,0.4492248,113930.0,113920.0,0.00110625]
[1761624009639,0.31996336,113930.0,113920.0,0.00110625]
[1761624009845,0.31996336,113930.0,113920.0,0.02229625]
[1761624011143,0.1443065,113930.0,113920.0,0.04516625]
[1761624011348,0.1443065,113930.0,113920.0,0.2108254]
[1761624011653,0.29676565,113930.0,113920.0,0.05836625]
[1761624012257,0.29676565,113930.0,113920.0,0.04516625]
[1761624013451,0.29676565,113930.0,113920.0,0.02229625]
[1761624013648,0.29676565,113930.0,113920.0,0.04516625]
[1761624013851,0.1316665,113930.0,113920.0,0.05836625]
[1761624014046,0.28412565,113930.0,113920.0,0.05836625]
[1761624015352,0.29676565,113930.0,113920.0,0.04516625]
[1761624017044,0.1443065,113930.0,113920.0,0.04516625]
[1761624017348,0.29676565,113930.0,113920.0,0.04516625]
[1761624017557,0.29676565,113930.0,113920.0,0.00110625]
[1761624018254,0.29676565,113930.0,113920.0,0.02229625]
[1761624019149,0.29676565,113930.0,113920.0,0.04516625]
[1761624019354,0.29676565,113930.0,113920.0,0.00110625]
[1761624019847,0.29676565,113930.0,113920.0,0.02229625]
[1761624021757,0.29695382,113930.0,113920.0,0.02229625]
[1761624022255,0.29695382,113930.0,113920.0,0.00110625]
[1761624022453,0.29695382,113930.0,113900.0,0.17475284]
[1761624022454,0.143902,113910.0,113900.0,0.02119]
[1761624022653,0.1391797,113900.0,113890.0,0.04406]
[1761624022955,0.29182702,113900.0,113890.0,0.04406]
[1761624023362,0.13926711,113900.0,113890.0,0.04406]
[1761624023849,0.14126711,113900.0,113890.0,0.05206]
[1761624025853,0.13926711,113900.0,113890.0,0.04406]
[1761624026051,0.14126711,113900.0,113890.0,0.04506]
[1761624029756,0.14126711,113900.0,113890.0,0.05797]
[1761624029958,0.13516711,113900.0,113890.0,0.05797]
[1761624030146,0.13516711,113900.0,113890.0,0.21061732]
[1761624030860,0.00208741,113900.0,113890.0,0.81061732]
[1761624031751,0.00208741,113900.0,113890.0,0.29842482]
[1761624032555,0.00208741,113900.0,113890.0,0.21061732]
[1761624032759,0.08988711,113900.0,113890.0,0.21061732]
[1761624033959,0.11289711,113900.0,113890.0,0.21061732]
[1761624034461,0.13496711,113900.0,113890.0,0.21061732]
[1761624034655,0.13496711,113900.0,113890.0,0.35771732]
[1761624037062,0.13496711,113900.0,113890.0,0.95771732]
[1761624037765,0.13496711,113900.0,113890.0,0.35771732]
[1761624039165,0.13496711,113900.0,113890.0,0.20507]
[1761624039361,0.13496711,113900.0,113890.0,0.35771732]
[1761624040565,0.13496711,113900.0,113890.0,0.21061732]
[1761624045166,0.13296711,113900.0,113890.0,0.20961732]
[1761624045368,0.13396711,113900.0,113890.0,0.21161732]
[1761624045878,0.13396711,113900.0,113890.0,0.29942482]
[1761624046081,0.00108741,113900.0,113890.0,0.29942482]
[1761624046582,0.00108741,113900.0,113890.0,0.44652482]
[1761624046977,0.00108741,113900.0,113890.0,0.52550303]
[1761624049677,0.00108741,113900.0,113890.0,0.52550243]
[1761624053178,0.00108741,113900.0,113890.0,0.44652422]
[1761624054484,0.00108741,113900.0,113890.0,1.04652422]
[1761624056392,0.13396731,113900.0,113890.0,1.04652492]
[1761624057389,0.13396731,113900.0,113890.0,0.35871732]
[1761624058288,0.13396731,113900.0,113890.0,0.21161732]
[1761624060306,0.00108741,113900.0,113890.0,0.29942492]
[1761624062385,0.00108741,113900.0,113890.0,0.1467776]
[1761624062591,0.04539741,113900.0,113890.0,0.29942492]
[1761624063990,0.04539741,113900.0,113890.0,0.44652492]
[1761624064378,0.13319721,113900.0,113890.0,0.20607]
[1761624064688,0.29667453,113900.0,113890.0,0.27213821]
[1761624064889,0.29667453,113900.0,113890.0,0.19316]
[1761624065089,0.29667453,113900.0,113890.0,0.1491]
[1761624065689,0.29667453,113900.0,113890.0,0.17033]
[1761624065891,0.29667453,113900.0,113890.0,0.19305]
[1761624067296,0.13319721,113900.0,113890.0,0.20575]
[1761624069299,0.29667453,113900.0,113890.0,0.19305]
[1761624069594,0.29667453,113900.0,113890.0,0.19169]
[1761624069800,0.89667453,113900.0,113890.0,0.19169]
[1761624069996,0.89667453,113900.0,113890.0,0.04459]
[1761624071599,0.74402721,113900.0,113890.0,0.04459]
[1761624071794,0.89667453,113900.0,113890.0,0.04459]
[1761624076595,0.89667453,113900.0,113890.0,0.05729]
[1761624076801,0.74402721,113900.0,113890.0,0.05729]
[1761624078599,0.73319721,113900.0,113890.0,0.05729]
[1761624079004,0.73319721,113900.0,113890.0,0.20993732]
[1761624079903,0.11195721,113900.0,113890.0,0.29774482]
[1761624080497,0.13490721,113900.0,113890.0,0.29774482]
[1761624081205,0.13490721,113900.0,113890.0,0.20993732]
[1761624081400,0.13490721,113900.0,113890.0,0.29774482]
[1761624083808,0.13490721,113900.0,113890.0,0.29776362]
[1761624086509,0.00108741,113900.0,113890.0,0.45042974]
[1761624086698,0.08888721,113900.0,113890.0,0.45042974]
[1761624087006,0.13474721,113900.0,113890.0,0.45042974]
[1761624087407,0.11179721,113900.0,113890.0,0.45042974]
[1761624087610,0.00108741,113900.0,113890.0,0.45042974]
[1761624087905,0.08888721,113900.0,113890.0,0.45042974]
[1761624089209,0.13282721,113900.0,113890.0,0.45042974]
[1761624089905,0.00108741,113900.0,113890.0,0.45042974]
[1761624090205,0.1107343,113920.0,113910.0,0.1468521]
[1761624090398,0.1317643,113920.0,113910.0,0.29951822]
[1761624091709,0.24654072,113940.0,113920.0,0.1468444]
[1761624091710,0.1317612,113930.0,113920.0,0.1468444]
[1761624091906,0.1107312,113930.0,113920.0,0.45217664]
[1761624092301,0.1317612,113930.0,113920.0,0.45217664]
[1761624093911,0.1347612,113930.0,113920.0,0.21272612]
[1761624094214,0.29352732,113930.0,113920.0,0.04705]
[1761624094512,0.28742732,113930.0,113920.0,0.06006]
[1761624095512,0.1347612,113930.0,113920.0,0.06006]
[1761624095810,0.28742732,113930.0,113920.0,0.30051062]
[1761624098113,0.28742732,113930.0,113920.0,0.30926858]
[1761624099808,0.28742732,113930.0,113920.0,0.21272612]
[1761624100414,0.28742732,113930.0,113920.0,0.06006]
[1761624102614,0.28742732,113930.0,113920.0,0.1478445]
[1761624102814,0.28742732,113930.0,113920.0,0.30051062]
[1761624103715,0.28742732,113930.0,113920.0,0.21272612]
[1761624104318,0.28742732,113930.0,113920.0,0.06006]
[1761624105217,0.29352732,113930.0,113920.0,0.02407]
[1761624106217,0.1408612,113930.0,113920.0,0.04705]
[1761624106409,0.29352732,113930.0,113920.0,0.04705]
[1761624108918,0.29352732,113930.0,113920.0,0.02407]
[1761624109119,0.29352732,113930.0,113920.0,0.001]
[1761624109315,0.29352732,113930.0,113920.0,0.02407]
[1761624109917,0.29352732,113930.0,113920.0,0.04705]
[1761624119521,0.1408612,113930.0,113920.0,0.04705]
[1761624119723,0.28742732,113930.0,113920.0,0.21312612]
[1761624120425,0.28742732,113930.0,113920.0,0.30091062]
[1761624121418,0.1347612,113930.0,113920.0,0.30091062]
[1761624121928,0.1347612,113930.0,113920.0,0.45357674]
[1761624122226,0.1347612,113930.0,113920.0,0.30091062]
[1761624122422,0.1347612,113930.0,113920.0,0.45357674]
[1761624122821,0.003,113930.0,113920.0,0.45357674]
[1761624123014,0.003,113930.0,113920.0,0.53255495]
[1761624124630,0.1329569,113950.0,113940.0,0.01341]
[1761624124826,0.1329569,113950.0,113940.0,0.45071134]
[1761624125229,0.1329569,113950.0,113940.0,0.29804522]
[1761624125426,0.1329569,113950.0,113940.0,0.21027612]
[1761624126128,0.1409569,113950.0,113940.0,0.21227612]
[1761624127031,0.1329569,113950.0,113940.0,0.21027612]
[1761624127227,0.1389569,113950.0,113940.0,0.21127612]
[1761624127531,0.1399569,113950.0,113940.0,0.21127612]
[1761624128024,0.1399569,113950.0,113940.0,0.29904522]
[1761624128223,0.1389569,113950.0,113940.0,0.29904522]
[1761624128832,0.006,113950.0,113940.0,0.45171134]
[1761624131328,0.0937614,113950.0,113940.0,0.45171134]
[1761624131735,0.1155314,113950.0,113940.0,0.45171134]
[1761624132232,0.0937614,113950.0,113940.0,0.45171134]
[1761624133134,0.1379414,113950.0,113940.0,0.45171134]
[1761624133332,0.29060752,113950.0,113940.0,0.29904522]
[1761624133524,0.30160752,113950.0,113940.0,0.0452]
[1761624134132,0.29060752,113950.0,113940.0,0.1461691]
[1761624134528,0.1379414,113950.0,113940.0,0.45150134]
[1761624135531,0.0937614,113950.0,113940.0,0.45150134]
[1761624136740,0.1155314,113950.0,113940.0,0.45150134]
[1761624137039,0.02777,113950.0,113940.0,0.45150134]
[1761624137239,0.006,113950.0,113940.0,0.45150134]
[1761624137729,0.006,113950.0,113920.0,0.12040667]
[1761624137928,0.02777,113950.0,113940.0,0.42352134]
[1761624138139,0.05018,113950.0,113940.0,0.42352134]
[1761624139849,0.1379414,113950.0,113940.0,0.42352134]
[1761624140950,0.05018,113950.0,113940.0,0.42352134]
[1761624142451,0.1379414,113950.0,113940.0,0.42352134]
[1761624144249,0.05018,113950.0,113940.0,0.42352134]
[1761624144445,0.006,113950.0,113940.0,1.30725907]
[1761624144751,0.006,113950.0,113940.0,0.7950207]
[1761624144951,0.1449908,113970.0,113960.0,0.1181737]
[1761624145150,0.1449908,113970.0,113960.0,0.27083982]
[1761624145550,0.1449908,113970.0,113960.0,0.42350594]
[1761624145750,0.1449908,113970.0,113960.0,0.2706611]
[1761624146357,0.1539908,113970.0,113960.0,0.2716611]
[1761624147055,0.1549908,113970.0,113960.0,0.2716611]
[1761624148955,0.119516,113970.0,113960.0,0.2716611]
[1761624149256,0.05292,113970.0,113960.0,0.2716611]
[1761624150754,0.01,113970.0,113960.0,0.2716611]
[1761624152446,0.01,113970.0,113960.0,0.28027964]
[1761624152761,0.03166,113970.0,113960.0,0.88027964]
[1761624153551,0.01,113970.0,113960.0,0.88027964]
[1761624153759,0.03166,113970.0,113960.0,0.88027964]
[1761624155254,0.05281,113970.0,113960.0,0.88027964]
[1761624155861,0.03166,113970.0,113960.0,0.88027964]
[1761624156059,0.01,113970.0,113960.0,0.88027964]
[1761624157858,0.03166,113970.0,113960.0,0.88027964]
[1761624158159,0.05281,113970.0,113960.0,0.88027964]
[1761624161162,0.03166,113970.0,113960.0,0.88027964]
[1761624161462,0.01,113970.0,113960.0,0.88027964]
[1761624162259,0.03166,113970.0,113960.0,0.88027964]
[1761624163563,0.01,113970.0,113960.0,0.41184326]
[1761624164556,0.03166,113970.0,113960.0,0.41184326]
[1761624164955,0.06663,113970.0,113960.0,0.41184326]
[1761624168666,0.06663,113970.0,113960.0,1.01184326]
[1761624169267,0.3068634,113970.0,113960.0,0.04003854]
[1761624169474,0.3068634,113970.0,113960.0,0.02482854]
[1761624169769,0.4593508,113970.0,113960.0,0.001]
[1761624170155,0.3068634,113970.0,113960.0,0.001]
[1761624171976,0.31559671,113970.0,113960.0,0.001]
[1761624173470,0.3068634,113970.0,113960.0,0.001]
[1761624174870,0.9068634,113970.0,113960.0,0.001]
[1761624175274,0.9068634,113970.0,113960.0,0.01621]
[1761624175771,0.9068634,113970.0,113960.0,0.001]
[1761624180474,0.9068634,113970.0,113960.0,0.01621]
[1761624180771,0.9068634,113970.0,113960.0,0.03142]
[1761624181771,0.9068634,113970.0,113960.0,0.001]
[1761624182772,0.9068634,113970.0,113960.0,0.03142]
[1761624183571,0.154376,113970.0,113960.0,0.03142]
[1761624183774,0.154376,113970.0,113960.0,0.2716612]
[1761624186274,0.01,113970.0,113960.0,0.41153575]
[1761624186465,0.01,113970.0,113960.0,0.49051396]
[1761624186866,0.03328,113970.0,113960.0,0.49051396]